fUSD/lending_fUSD_20250211
["ID","MTS","AMOUNT","RATE_DAILY","PERIOD"]
[352734915,1739283059310,-1475.61,0.00011095,2]
[352734916,1739283059319,-500.0,0.00011095,2]
[352734917,1739283059328,-500.0,0.00011095,2]
[352734918,1739283059337,-810.69,0.00011095,2]
[352734919,1739283059346,-500.0,0.00011095,2]
[352734920,1739283059356,-500.0,0.00011095,2]
[352734921,1739283059365,-2371.13,0.00011095,2]
[352734922,1739283059374,-700.09,0.00011095,2]
[352734923,1739283059383,-1214.76,0.00011095,2]
[352734924,1739283059392,-2171.63,0.00011095,2]
[352734925,1739283059401,-2387.02,0.00011095,2]
[352734926,1739283059410,-620.08,0.00011095,2]
[352734927,1739283059419,-500.0,0.00011095,2]
[352734928,1739283059428,-503.59384647,0.00011095,2]
[352734929,1739283059438,-500.0,0.00011095,2]
[352734930,1739283059447,-2310.94,0.00011095,2]
[352734931,1739283059456,-500.0,0.00011095,2]
[352734932,1739283059465,-2340.95,0.00011095,2]
[352734933,1739283059474,-500.0,0.00011095,2]
[352734934,1739283059483,-5444.75,0.00011095,2]
[352734935,1739283059492,-1886.51,0.00011095,2]
[352734936,1739283059501,-300.65222773,0.00011095,2]
[352734937,1739283059512,-2886.17,0.00011095,2]
[352734938,1739283059521,-727.8,0.00011095,2]
[352734939,1739283059530,-500.0,0.00011095,2]
[352734940,1739283059539,-707.04,0.00011095,2]
[352734941,1739283059549,-500.0,0.00011095,2]
[352734942,1739283059558,-2343.44,0.00011095,2]
[352734943,1739283059567,-500.0,0.00011095,2]
[352734944,1739283059576,-500.0,0.00011095,2]
[352734945,1739283059585,-937.33,0.00011095,2]
[352734946,1739283059594,-1158.26,0.00011095,2]
[352734947,1739283059603,-500.0,0.00011095,2]
[352734948,1739283059615,-670.35,0.00011095,2]
[352734949,1739283059625,-500.0,0.00011095,2]
[352734950,1739283059634,-2558.39,0.00011095,2]
[352734951,1739283059643,-620.78,0.00011095,2]
[352734952,1739283059652,-2007.68,0.00011095,2]
[352734953,1739283059661,-2648.76,0.00011095,2]
[352734954,1739283059670,-2171.75,0.00011095,2]
[352734955,1739283059679,-2434.45,0.00011095,2]
[352734956,1739283059690,-1085.29,0.00011095,2]
[352734957,1739283059700,-500.0,0.00011095,2]
[352734958,1739283059709,-500.0,0.00011095,2]
[352734959,1739283059718,-731.57,0.00011095,2]
[352734960,1739283059727,-2583.49,0.00011095,2]
[352734961,1739283059736,-2031.5,0.00011095,2]
[352734962,1739283059745,-500.0,0.00011095,2]
[352734963,1739283059754,-500.0,0.00011095,2]
[352734964,1739283059763,-151.0,0.00011095,2]
[352734965,1739283059772,-3062.38,0.00011095,2]
[352734966,1739283059782,-500.0,0.00011095,2]
[352734967,1739283059793,-713.43,0.00011095,2]
[352734968,1739283059802,-1845.16,0.00011095,2]
[352734969,1739283059811,-500.0,0.00011095,2]
[352734970,1739283059820,-3061.99,0.00011095,2]
[352734971,1739283059829,-151.0,0.00011095,2]
[352734972,1739283059840,-2068.15,0.00011095,2]
[352734973,1739283059849,-1009.34,0.00011095,2]
[352734974,1739283059858,-2900.54,0.00011095,2]
[352734975,1739283059867,-500.0,0.00011095,2]
[352734976,1739283059876,-2626.43,0.00011095,2]
[352734977,1739283059886,-500.0,0.00011095,2]
[352734978,1739283059907,-2213.47,0.00011095,2]
[352734979,1739283059916,-500.0,0.00011095,2]
[352734980,1739283059927,-2309.34,0.00011095,2]
[352734981,1739283059937,-7282.99,0.00011095,2]
[352734982,1739283059946,-1952.41,0.00011095,2]
[352734983,1739283059956,-701.48,0.00011095,2]
[352734984,1739283059966,-1931.94,0.00011095,2]
[352734985,1739283059975,-500.0,0.00011095,2]
[352734986,1739283059986,-500.0,0.00011095,2]
[352734987,1739283059995,-500.0,0.00011095,2]
[352734988,1739283060004,-5326.26,0.00011095,2]
[352734989,1739283060014,-500.0,0.00011095,2]
[352734990,1739283060023,-3327.15,0.00011095,2]
[352734991,1739283060033,-500.0,0.00011095,2]
[352734992,1739283060045,-1259.82,0.00011095,2]
[352734993,1739283060056,-500.0,0.00011095,2]
[352734994,1739283060066,-667.96,0.00011095,2]
[352734995,1739283060076,-500.0,0.00011095,2]
[352734996,1739283060087,-3450.17,0.00011095,2]
[352734997,1739283060096,-500.0,0.00011095,2]
[352734998,1739283060105,-1704.66,0.00011095,2]
[352734999,1739283060115,-500.0,0.00011095,2]
[352735000,1739283060124,-500.0,0.00011095,2]
[352735001,1739283060133,-2127.38,0.00011095,2]
[352735002,1739283060143,-500.0,0.00011095,2]
[352735003,1739283060153,-500.0,0.00011095,2]
[352735004,1739283060163,-355.96327089,0.00011095,2]
[352735005,1739283060173,-500.0,0.00011095,2]
[352735006,1739283060183,-1476.79,0.00011095,2]
[352735007,1739283060193,-1839.16,0.00011095,2]
[352735008,1739283060203,-889.84,0.00011095,2]
[352735009,1739283060214,-2565.16,0.00011095,2]
[352735010,1739283060224,-500.0,0.00011095,2]
[352735011,1739283060234,-2467.78,0.00011095,2]
[352735012,1739283060244,-500.0,0.00011095,2]
[352735013,1739283060253,-502.77863545,0.00011095,2]
[352735014,1739283060263,-1657.8,0.00011095,2]
[352735015,1739283060273,-683.49,0.00011095,2]
[352735016,1739283060282,-500.0,0.00011095,2]
[352735017,1739283060296,-500.0,0.00011095,2]
[352735018,1739283060310,-1036.17,0.00011095,2]
[352735019,1739283060319,-2953.99,0.00011095,2]
[352735020,1739283060329,-500.0,0.00011095,2]
[352735021,1739283060338,-500.0,0.00011095,2]
[352735022,1739283060348,-2380.39,0.00011095,2]
[352735023,1739283060358,-1433.77,0.00011095,2]
[352735024,1739283060368,-402.92788431,0.00011095,2]
[352735025,1739283060378,-224.54313416,0.00011095,2]
[352735026,1739283060387,-1071.62,0.00011095,2]
[352735027,1739283060397,-1274.15,0.00011095,2]
[352735028,1739283060406,-500.0,0.00011095,2]
[352735029,1739283060416,-855.01,0.00011095,2]
[352735030,1739283060426,-1027.27,0.00011095,2]
[352735031,1739283060436,-1213.71,0.00011095,2]
[352735032,1739283060446,-500.0,0.00011095,2]
[352735033,1739283060455,-500.0,0.00011095,2]
[352735034,1739283060465,-500.0,0.00011095,2]
[352735035,1739283060474,-2875.82,0.00011095,2]
[352735036,1739283060484,-727.11,0.00011095,2]
[352735037,1739283060494,-500.0,0.00011095,2]
[352735038,1739283060503,-2384.33,0.00011095,2]
[352735039,1739283060513,-1743.04,0.00011095,2]
[352735040,1739283060523,-713.14,0.00011095,2]
[352735041,1739283060533,-2037.92,0.00011095,2]
[352735042,1739283060548,-500.0,0.00011095,2]
[352735043,1739283060558,-1210.9,0.00011095,2]
[352735044,1739283060568,-245.42882643,0.00011095,2]
[352735045,1739283060578,-3335.18,0.00011095,2]
[352735046,1739283060588,-500.0,0.00011095,2]
[352735047,1739283060598,-225.30471811,0.00011096,2]
[352735048,1739283060608,-225.3047181,0.00011096,2]
[352735049,1739283060620,-337.95707717,0.00011096,2]
[352735050,1739283060630,-563.26179527,0.00011096,2]
[352735051,1739283060640,-754.87574915,0.00011099,2]
[352735052,1739283060649,-754.87574914,0.00011099,2]
[352735053,1739283060660,-754.87574914,0.00011099,2]
[352735054,1739283060669,-250.0,0.00011119,2]
[352735055,1739283060678,-154.049,0.00011119,2]
[352735056,1739283060688,-170.452,0.00011119,2]
[352735057,1739283060698,-150.747,0.00011119,2]
[352735058,1739283060707,-1273.0,0.00011119,2]
[352735059,1739283060717,-2024.0,0.00011119,2]
[352735060,1739283060727,-638.0,0.00011119,2]
[352735061,1739283060737,-213.401,0.00011119,2]
[352735062,1739283060747,-276.574,0.00011119,2]
[352735063,1739283060758,-581.602,0.00011119,2]
[352735064,1739283060768,-1828.0,0.00011119,2]
[352735065,1739283060778,-914.364,0.00011119,2]
[352735066,1739283060788,-783.0,0.00011119,2]
[352735067,1739283060803,-1265.0,0.00011119,2]
[352735068,1739283060813,-2955.0,0.00011119,2]
[352735069,1739283060822,-539.0,0.00011119,2]
[352735070,1739283060832,-4023.0,0.00011119,2]
[352735071,1739283060842,-225.30471811,0.00011123,2]
[352735072,1739283060851,-225.3047181,0.00011123,2]
[352735073,1739283060861,-337.95707717,0.00011123,2]
[352735074,1739283060870,-563.26179527,0.00011123,2]
[352735075,1739283060880,-500.0,0.00011134,2]
[352735076,1739283060890,-500.0,0.00011134,2]
[352735077,1739283060900,-855.58,0.00011155,2]
[352735078,1739283060910,-1320.01710315,0.0001116,2]
[352735079,1739283060920,-2183.0,0.00011178,2]
[352735080,1739283060930,-754.87574914,0.00011178,2]
[352735081,1739283060939,-225.30471811,0.00011178,2]
[352735082,1739283060949,-225.3047181,0.00011178,2]
[352735083,1739283060959,-337.95707717,0.00011178,2]
[352735084,1739283060968,-563.26179527,0.00011178,2]
[352735085,1739283060978,-1000.0,0.00011199,2]
[352735086,1739283060988,-1000.0,0.00011199,2]
[352735087,1739283060997,-1000.0,0.00011199,2]
[352735088,1739283061007,-1000.0,0.00011199,2]
[352735089,1739283061017,-1000.0,0.00011199,2]
[352735090,1739283061027,-1000.0,0.00011199,2]
[352735091,1739283061036,-1000.0,0.00011199,2]
[352735092,1739283061048,-1000.0,0.00011199,2]
[352735093,1739283061058,-1026.76891624,0.00011199,2]
[352735094,1739283061068,-351.97,0.000112,2]
[352735095,1739283061078,-3727.039,0.00011206,2]
[352735096,1739283061088,-182.41,0.00011206,2]
[352735097,1739283061097,-1000.0,0.00011212,2]
[352735098,1739283061107,-1000.0,0.00011212,2]
[352735099,1739283061117,-1000.0,0.00011212,2]
[352735100,1739283061126,-1000.0,0.00011212,2]
[352735101,1739283061136,-1000.0,0.00011212,2]
[352735102,1739283061146,-1000.0,0.00011212,2]
[352735103,1739283061156,-1000.0,0.00011212,2]
[352735104,1739283061167,-1000.0,0.00011212,2]
[352735105,1739283061177,-1000.0,0.00011212,2]
[352735106,1739283061192,-1000.0,0.00011212,2]
[352735107,1739283061202,-1004.06299946,0.00011212,2]
[352735108,1739283061212,-1114.15,0.00011226,2]
[352735109,1739283061221,-1907.79,0.00011226,2]
[352735110,1739283061231,-500.0,0.00011226,2]
[352735111,1739283061241,-2042.7,0.00011226,2]
[352735112,1739283061251,-2608.79,0.00011226,2]
[352735113,1739283061260,-300.0,0.00011231,2]
[352735114,1739283061270,-500.0,0.00011231,2]
[352735115,1739283061279,-500.0,0.00011231,2]
[352735116,1739283061290,-151.0,0.00011232,2]
[352735117,1739283061302,-500.0,0.00011232,2]
[352735118,1739283061312,-500.0,0.00011232,2]
[352735119,1739283061321,-500.0,0.00011232,2]
[352735120,1739283061331,-500.0,0.00011232,2]
[352735121,1739283061341,-500.0,0.00011232,2]
[352735122,1739283061351,-500.0,0.00011232,2]
[352735123,1739283061361,-500.0,0.00011232,2]
[352735124,1739283061371,-500.0,0.00011232,2]
[352735125,1739283061381,-500.0,0.00011232,2]
[352735126,1739283061391,-500.0,0.00011232,2]
[352735127,1739283061401,-500.0,0.00011232,2]
[352735128,1739283061411,-500.0,0.00011232,2]
[352735129,1739283061421,-500.0,0.00011232,2]
[352735130,1739283061431,-500.0,0.00011232,2]
[352735131,1739283061442,-500.0,0.00011232,2]
[352735132,1739283061452,-500.0,0.00011232,2]
[352735133,1739283061463,-500.0,0.00011232,2]
[352735134,1739283061473,-500.0,0.00011232,2]
[352735135,1739283061483,-500.0,0.00011232,2]
[352735136,1739283061493,-500.0,0.00011232,2]
[352735137,1739283061504,-176.696701,0.00011232,2]
[352735138,1739283061514,-545.31,0.00011232,2]
[352735139,1739283061524,-500.0,0.00011232,2]
[352735140,1739283061534,-500.0,0.00011232,2]
[352735141,1739283061548,-500.0,0.00011232,2]
[352735142,1739283061558,-500.0,0.00011232,2]
[352735143,1739283061568,-500.0,0.00011232,2]
[352735144,1739283061580,-151.0,0.00011232,2]
[352735145,1739283061591,-523.57870942,0.00011232,2]
[352735146,1739283061601,-500.0,0.00011232,2]
[352735147,1739283061612,-500.0,0.00011232,2]
[352735148,1739283061626,-500.0,0.00011232,2]
[352735149,1739283061637,-500.0,0.00011232,2]
[352735150,1739283061648,-500.0,0.00011232,2]
[352735151,1739283061659,-500.0,0.00011232,2]
[352735152,1739283061670,-623.89,0.00011232,2]
[352735153,1739283061680,-2289.514115,0.00011232,2]
[352735154,1739283061691,-500.0,0.00011232,2]
[352735155,1739283061704,-500.0,0.00011232,2]
[352735156,1739283061714,-500.0,0.00011232,2]
[352735157,1739283061724,-912.071354,0.00011232,2]
[352735158,1739283061734,-562.39,0.00011232,2]
[352735159,1739283061744,-500.0,0.00011232,2]
[352735160,1739283061753,-500.0,0.00011232,2]
[352735161,1739283061763,-500.0,0.00011232,2]
[352735162,1739283061773,-1335.42,0.00011232,2]
[352735163,1739283061783,-500.0,0.00011232,2]
[352735164,1739283061953,-500.0,0.00011232,2]
[352735165,1739283061974,-500.0,0.00011232,2]
[352735166,1739283061984,-500.0,0.00011232,2]
[352735167,1739283061993,-500.0,0.00011232,2]
[352735168,1739283062003,-500.0,0.00011232,2]
[352735169,1739283062014,-500.0,0.00011232,2]
[352735170,1739283062023,-1026.73,0.00011232,2]
[352735171,1739283062033,-500.0,0.00011232,2]
[352735172,1739283062046,-500.0,0.00011232,2]
[352735173,1739283062056,-500.0,0.00011232,2]
[352735174,1739283062066,-500.0,0.00011232,2]
[352735175,1739283062076,-1291.73,0.00011232,2]
[352735176,1739283062086,-500.0,0.00011232,2]
[352735177,1739283062096,-500.0,0.00011232,2]
[352735178,1739283062106,-500.0,0.00011232,2]
[352735179,1739283062116,-500.0,0.00011232,2]
[352735180,1739283062126,-500.0,0.00011232,2]
[352735181,1739283062137,-1006.21,0.00011232,2]
[352735182,1739283062146,-500.0,0.00011232,2]
[352735183,1739283062156,-500.0,0.00011232,2]
[352735184,1739283062166,-500.0,0.00011232,2]
[352735185,1739283062175,-654.08,0.00011232,2]
[352735186,1739283062185,-500.0,0.00011232,2]
[352735187,1739283062199,-500.0,0.00011232,2]
[352735188,1739283062209,-500.0,0.00011232,2]
[352735189,1739283062219,-500.0,0.00011232,2]
[352735190,1739283062229,-500.0,0.00011232,2]
[352735191,1739283062238,-500.0,0.00011232,2]
[352735192,1739283062248,-500.0,0.00011232,2]
[352735193,1739283062258,-500.0,0.00011232,2]
[352735194,1739283062267,-648.91,0.00011232,2]
[352735195,1739283062277,-500.0,0.00011232,2]
[352735196,1739283062286,-829.91,0.00011232,2]
[352735197,1739283062300,-500.0,0.00011232,2]
[352735198,1739283062310,-500.0,0.00011232,2]
[352735199,1739283062320,-500.0,0.00011232,2]
[352735200,1739283062331,-500.0,0.00011232,2]
[352735201,1739283062341,-1283.05,0.00011232,2]
[352735202,1739283062350,-500.0,0.00011232,2]
[352735203,1739283062360,-500.0,0.00011232,2]
[352735204,1739283062369,-500.0,0.00011232,2]
[352735205,1739283062379,-500.0,0.00011232,2]
[352735206,1739283062389,-500.0,0.00011232,2]
[352735207,1739283062398,-500.0,0.00011232,2]
[352735208,1739283062408,-500.0,0.00011232,2]
[352735209,1739283062418,-500.0,0.00011232,2]
[352735210,1739283062428,-500.0,0.00011232,2]
[352735211,1739283062438,-500.0,0.00011232,2]
[352735212,1739283062448,-500.0,0.00011232,2]
[352735213,1739283062459,-627.22,0.00011232,2]
[352735214,1739283062469,-784.62,0.00011232,2]
[352735215,1739283062479,-500.0,0.00011232,2]
[352735216,1739283062489,-500.0,0.00011232,2]
[352735217,1739283062499,-500.0,0.00011232,2]
[352735218,1739283062509,-500.0,0.00011232,2]
[352735219,1739283062518,-500.0,0.00011232,2]
[352735220,1739283062528,-500.0,0.00011232,2]
[352735221,1739283062538,-500.0,0.00011232,2]
[352735222,1739283062551,-500.0,0.00011232,2]
[352735223,1739283062561,-500.0,0.00011232,2]
[352735224,1739283062571,-1049.93,0.00011232,2]
[352735225,1739283062580,-500.0,0.00011232,2]
[352735226,1739283062589,-500.0,0.00011232,2]
[352735227,1739283062599,-500.0,0.00011232,2]
[352735228,1739283062610,-656.24,0.00011232,2]
[352735229,1739283062621,-500.0,0.00011232,2]
[352735230,1739283062637,-500.0,0.00011232,2]
[352735231,1739283062647,-717.49,0.00011232,2]
[352735232,1739283062657,-750.73,0.00011232,2]
[352735233,1739283062667,-500.0,0.00011232,2]
[352735234,1739283062677,-899.58,0.00011232,2]
[352735235,1739283062686,-500.0,0.00011232,2]
[352735236,1739283062696,-500.0,0.00011232,2]
[352735237,1739283062708,-951.35,0.00011232,2]
[352735238,1739283062718,-1059.29,0.00011232,2]
[352735239,1739283062729,-500.0,0.00011232,2]
[352735240,1739283062738,-500.0,0.00011232,2]
[352735241,1739283062748,-500.0,0.00011232,2]
[352735242,1739283062758,-1079.43,0.00011232,2]
[352735243,1739283062767,-771.17,0.00011232,2]
[352735244,1739283062776,-500.0,0.00011232,2]
[352735245,1739283062786,-500.0,0.00011232,2]
[352735246,1739283062798,-500.0,0.00011232,2]
[352735247,1739283062807,-500.0,0.00011232,2]
[352735248,1739283062817,-500.0,0.00011232,2]
[352735249,1739283062827,-500.0,0.00011232,2]
[352735250,1739283062837,-500.0,0.00011232,2]
[352735251,1739283062847,-621.59,0.00011232,2]
[352735252,1739283062856,-500.0,0.00011232,2]
[352735253,1739283062866,-500.0,0.00011232,2]
[352735254,1739283062876,-500.0,0.00011232,2]
[352735255,1739283062886,-500.0,0.00011232,2]
[352735256,1739283062896,-503.59365442,0.00011232,2]
[352735257,1739283062907,-500.0,0.00011232,2]
[352735258,1739283062917,-500.0,0.00011232,2]
[352735259,1739283062928,-500.0,0.00011232,2]
[352735260,1739283062939,-500.0,0.00011232,2]
[352735261,1739283062950,-500.0,0.00011232,2]
[352735262,1739283062960,-500.0,0.00011232,2]
[352735263,1739283062970,-772.38,0.00011232,2]
[352735264,1739283062980,-637.38,0.00011232,2]
[352735265,1739283062989,-500.0,0.00011232,2]
[352735266,1739283062999,-500.0,0.00011232,2]
[352735267,1739283063009,-500.0,0.00011232,2]
[352735268,1739283063020,-564.18,0.00011232,2]
[352735269,1739283063030,-500.0,0.00011232,2]
[352735270,1739283063041,-500.0,0.00011232,2]
[352735271,1739283063055,-500.0,0.00011232,2]
[352735272,1739283063066,-609.82,0.00011232,2]
[352735273,1739283063077,-500.0,0.00011232,2]
[352735274,1739283063087,-726.26,0.00011232,2]
[352735275,1739283063098,-562.5,0.00011232,2]
[352735276,1739283063108,-500.0,0.00011232,2]
[352735277,1739283063120,-500.0,0.00011232,2]
[352735278,1739283063130,-500.0,0.00011232,2]
[352735279,1739283063141,-500.0,0.00011232,2]
[352735280,1739283063152,-500.0,0.00011232,2]
[352735281,1739283063162,-500.0,0.00011232,2]
[352735282,1739283063172,-500.0,0.00011232,2]
[352735283,1739283063183,-500.0,0.00011232,2]
[352735284,1739283063194,-500.0,0.00011232,2]
[352735285,1739283063205,-657.71,0.00011232,2]
[352735286,1739283063216,-500.0,0.00011232,2]
[352735287,1739283063229,-545.49,0.00011232,2]
[352735288,1739283063241,-500.0,0.00011232,2]
[352735289,1739283063252,-947.55,0.00011232,2]
[352735290,1739283063263,-539.06122692,0.00011232,2]
[352735291,1739283063275,-500.0,0.00011232,2]
[352735292,1739283063286,-500.0,0.00011232,2]
[352735293,1739283063301,-500.0,0.00011232,2]
[352735294,1739283063312,-500.0,0.00011232,2]
[352735295,1739283063323,-500.0,0.00011232,2]
[352735296,1739283063333,-500.0,0.00011232,2]
[352735297,1739283063344,-500.0,0.00011232,2]
[352735298,1739283063355,-500.0,0.00011232,2]
[352735299,1739283063365,-500.0,0.00011232,2]
[352735300,1739283063375,-500.0,0.00011232,2]
[352735301,1739283063384,-500.0,0.00011232,2]
[352735302,1739283063394,-500.0,0.00011232,2]
[352735303,1739283063404,-791.02,0.00011232,2]
[352735304,1739283063415,-594.78,0.00011232,2]
[352735305,1739283063425,-517.91972292,0.00011232,2]
[352735306,1739283063435,-500.0,0.00011232,2]
[352735307,1739283063445,-500.0,0.00011232,2]
[352735308,1739283063455,-899.13,0.00011232,2]
[352735309,1739283063465,-500.0,0.00011232,2]
[352735310,1739283063475,-500.0,0.00011232,2]
[352735311,1739283063486,-723.56,0.00011232,2]
[352735312,1739283063495,-500.0,0.00011232,2]
[352735313,1739283063505,-623.3,0.00011232,2]
[352735314,1739283063516,-500.0,0.00011232,2]
[352735315,1739283063526,-500.0,0.00011232,2]
[352735316,1739283063536,-500.0,0.00011232,2]
[352735317,1739283063549,-500.0,0.00011232,2]
[352735318,1739283063559,-500.0,0.00011232,2]
[352735319,1739283063570,-500.0,0.00011232,2]
[352735320,1739283063580,-602.04,0.00011232,2]
[352735321,1739283063591,-500.0,0.00011232,2]
[352735322,1739283063602,-634.43,0.00011232,2]
[352735323,1739283063615,-500.0,0.00011232,2]
[352735324,1739283063628,-500.0,0.00011232,2]
[352735325,1739283063638,-689.47,0.00011232,2]
[352735326,1739283063648,-500.0,0.00011232,2]
[352735327,1739283063659,-500.0,0.00011232,2]
[352735328,1739283063669,-500.0,0.00011232,2]
[352735329,1739283063679,-500.0,0.00011232,2]
[352735330,1739283063689,-538.36711023,0.00011232,2]
[352735331,1739283063699,-500.0,0.00011232,2]
[352735332,1739283063710,-500.0,0.00011232,2]
[352735333,1739283063720,-518.00187235,0.00011232,2]
[352735334,1739283063731,-500.0,0.00011232,2]
[352735335,1739283063740,-500.0,0.00011232,2]
[352735336,1739283063750,-500.0,0.00011232,2]
[352735337,1739283063760,-999.07,0.00011232,2]
[352735338,1739283063770,-504.0029586,0.00011232,2]
[352735339,1739283063780,-500.0,0.00011232,2]
[352735340,1739283063790,-961.83,0.00011232,2]
[352735341,1739283063802,-500.0,0.00011232,2]
[352735342,1739283063812,-932.98,0.00011232,2]
[352735343,1739283063822,-500.0,0.00011232,2]
[352735344,1739283063832,-263.30621072,0.00011232,2]
[352735345,1739283063842,-503.57545854,0.00011232,2]
[352735346,1739283063852,-500.0,0.00011232,2]
[352735347,1739283063862,-662.81,0.00011232,2]
[352735348,1739283063872,-234.5353464,0.00011232,2]
[352735349,1739283063882,-520.48112984,0.00011232,2]
[352735350,1739283063892,-500.0,0.00011232,2]
[352735351,1739283063902,-500.0,0.00011232,2]
[352735352,1739283063912,-541.66,0.00011232,2]
[352735353,1739283063922,-722.67,0.00011232,2]
[352735354,1739283063931,-500.0,0.00011232,2]
[352735355,1739283063941,-500.0,0.00011232,2]
[352735356,1739283063951,-500.0,0.00011232,2]
[352735357,1739283063961,-500.0,0.00011232,2]
[352735358,1739283063971,-500.0,0.00011232,2]
[352735359,1739283063982,-500.0,0.00011232,2]
[352735360,1739283063992,-500.0,0.00011232,2]
[352735361,1739283064002,-500.0,0.00011232,2]
[352735362,1739283064012,-500.0,0.00011232,2]
[352735363,1739283064022,-500.0,0.00011232,2]
[352735364,1739283064032,-1030.45,0.00011232,2]
[352735365,1739283064043,-500.0,0.00011232,2]
[352735366,1739283064054,-500.0,0.00011232,2]
[352735367,1739283064065,-500.0,0.00011232,2]
[352735368,1739283064076,-500.0,0.00011232,2]
[352735369,1739283064086,-500.0,0.00011232,2]
[352735370,1739283064096,-835.87,0.00011232,2]
[352735371,1739283064107,-750.85,0.00011232,2]
[352735372,1739283064116,-500.0,0.00011232,2]
[352735373,1739283064127,-500.0,0.00011232,2]
[352735374,1739283064137,-500.0,0.00011232,2]
[352735375,1739283064147,-500.0,0.00011232,2]
[352735376,1739283064157,-500.0,0.00011232,2]
[352735377,1739283064168,-500.0,0.00011232,2]
[352735378,1739283064180,-500.0,0.00011232,2]
[352735379,1739283064190,-500.0,0.00011232,2]
[352735380,1739283064200,-500.0,0.00011232,2]
[352735381,1739283064210,-500.0,0.00011232,2]
[352735382,1739283064221,-500.0,0.00011232,2]
[352735383,1739283064232,-500.0,0.00011232,2]
[352735384,1739283064243,-500.0,0.00011232,2]
[352735385,1739283064253,-500.0,0.00011232,2]
[352735386,1739283064264,-500.0,0.00011232,2]
[352735387,1739283064274,-500.0,0.00011232,2]
[352735388,1739283064285,-1038.04,0.00011232,2]
[352735389,1739283064296,-655.85,0.00011232,2]
[352735390,1739283064306,-500.0,0.00011232,2]
[352735391,1739283064316,-500.0,0.00011232,2]
[352735392,1739283064327,-500.0,0.00011232,2]
[352735393,1739283064337,-317.3870164,0.00011232,2]
[352735394,1739283064347,-500.0,0.00011232,2]
[352735395,1739283064358,-626.7,0.00011232,2]
[352735396,1739283064368,-500.0,0.00011232,2]
[352735397,1739283064378,-500.0,0.00011232,2]
[352735398,1739283064389,-500.0,0.00011232,2]
[352735399,1739283064399,-581.18,0.00011232,2]
[352735400,1739283064411,-621.48649023,0.00011232,2]
[352735401,1739283064421,-650.34,0.00011232,2]
[352735402,1739283064432,-500.0,0.00011232,2]
[352735403,1739283064442,-500.0,0.00011232,2]
[352735404,1739283064453,-500.0,0.00011232,2]
[352735405,1739283064463,-500.0,0.00011232,2]
[352735406,1739283064474,-500.0,0.00011232,2]
[352735407,1739283064484,-557.62,0.00011232,2]
[352735408,1739283064494,-500.0,0.00011232,2]
[352735409,1739283064504,-1181.79,0.00011232,2]
[352735410,1739283064515,-552.27,0.00011232,2]
[352735411,1739283064586,-982.11,0.00011232,2]
[352735412,1739283064597,-500.0,0.00011232,2]
[352735413,1739283064608,-637.32,0.00011232,2]
[352735414,1739283064622,-500.0,0.00011232,2]